[Event "*** SCC Grand Prix: Titled Tuesday Blitz"]
[Site "Chess.com"]
[Date "2020.08.25"]
[Round "4"]
[White "maximnovik"]
[Black "Mazetovic"]
[Result "1/2-1/2"]
[WhiteElo "2474"]
[BlackElo "2665"]
[TimeControl "180+1"]
[EndTime "10:42:28 PDT"]
[Termination "Game drawn by agreement"]

1. d4 {[%clk 0:03:00.9]} 1... Nf6 {[%clk 0:02:59.6]} 2. c4 {[%clk 0:03:00.5]}
2... g6 {[%clk 0:02:58.8]} 3. Nc3 {[%clk 0:03:00.8]} 3... Bg7 {[%clk 0:02:58.6]}
4. e4 {[%clk 0:03:01.1]} 4... d6 {[%clk 0:02:59.1]} 5. Be2 {[%clk 0:03:01.4]}
5... O-O {[%clk 0:02:58.2]} 6. Nf3 {[%clk 0:03:01.8]} 6... Na6 {[%clk
0:02:57.7]} 7. O-O {[%clk 0:03:00.5]} 7... e5 {[%clk 0:02:57.4]} 8. Be3 {[%clk
0:02:47.2]} 8... c6 {[%clk 0:02:55.8]} 9. dxe5 {[%clk 0:02:45.2]} 9... dxe5
{[%clk 0:02:55.5]} 10. h3 {[%clk 0:02:43.1]} 10... Qe7 {[%clk 0:02:49.6]} 11. a3
{[%clk 0:02:42.4]} 11... Nc5 {[%clk 0:02:46.5]} 12. Qc2 {[%clk 0:02:41.7]} 12...
Nh5 {[%clk 0:02:40.5]} 13. b4 {[%clk 0:02:36]} 13... Ne6 {[%clk 0:02:40.3]} 14.
Rfd1 {[%clk 0:02:32.6]} 14... Nhf4 {[%clk 0:02:33]} 15. Bf1 {[%clk 0:02:32.7]}
15... a5 {[%clk 0:02:07.8]} 16. c5 {[%clk 0:01:50.1]} 16... axb4 {[%clk
0:02:00.8]} 17. axb4 {[%clk 0:01:50]} 17... Rxa1 {[%clk 0:02:01.1]} 18. Rxa1
{[%clk 0:01:50.5]} 18... Nd4 {[%clk 0:01:52.4]} 19. Nxd4 {[%clk 0:01:47.5]}
19... exd4 {[%clk 0:01:52.6]} 20. Bxf4 {[%clk 0:01:47.8]} 20... dxc3 {[%clk
0:01:53.1]} 21. Bd6 {[%clk 0:01:47.5]} 21... Qe6 {[%clk 0:01:26.6]} 22. Bxf8
{[%clk 0:01:45.5]} 22... Kxf8 {[%clk 0:01:26.5]} 23. Ra8 {[%clk 0:01:40.7]}
23... Ke7 {[%clk 0:01:24.2]} 24. Bd3 {[%clk 0:01:21.3]} 24... Bd4 {[%clk
0:01:13.3]} 25. Qc1 {[%clk 0:01:13.7]} 25... Bd7 {[%clk 0:01:07.9]} 26. Qg5+
{[%clk 0:01:06.9]} 26... Bf6 {[%clk 0:01:02.4]} 27. Qf4 {[%clk 0:01:03]} 27...
Be5 {[%clk 0:00:59.4]} 28. Qh6 {[%clk 0:01:02.6]} 28... Be8 {[%clk 0:00:58.8]}
29. Qxh7 {[%clk 0:00:56.4]} 29... Qd7 {[%clk 0:00:56]} 30. Qh4+ {[%clk
0:00:54.5]} 30... Bf6 {[%clk 0:00:54.3]} 31. Qg3 {[%clk 0:00:49.6]} 31... Bd4
{[%clk 0:00:21.3]} 32. Kf1 {[%clk 0:00:43.1]} 32... f6 {[%clk 0:00:21.1]} 33.
Qd6+ {[%clk 0:00:34.5]} 33... Qxd6 {[%clk 0:00:21]} 34. cxd6+ {[%clk 0:00:34]}
34... Kd7 {[%clk 0:00:20.9]} 35. Ke2 {[%clk 0:00:26.8]} 35... Bf7 {[%clk
0:00:20.6]} 36. Rb8 {[%clk 0:00:24.3]} 36... Kxd6 {[%clk 0:00:20.3]} 37. Rxb7
{[%clk 0:00:24.2]} 37... Bb3 {[%clk 0:00:20.1]} 38. g3 {[%clk 0:00:19.4]} 38...
c2 {[%clk 0:00:17.5]} 39. Kd2 {[%clk 0:00:19.4]} 39... Bxf2 {[%clk 0:00:17]} 40.
Bxc2 {[%clk 0:00:18.7]} 40... Be6 {[%clk 0:00:17.1]} 41. g4 {[%clk 0:00:18.1]}
41... g5 {[%clk 0:00:17.3]} 42. Bd3 {[%clk 0:00:18]} 42... Bd4 {[%clk
0:00:14.7]} 43. Ke2 {[%clk 0:00:18]} 43... Bc3 {[%clk 0:00:14.4]} 44. Rb8 {[%clk
0:00:17.3]} 44... Be5 {[%clk 0:00:13.7]} 45. Rb7 {[%clk 0:00:17]} 45... Bc8
{[%clk 0:00:13.4]} 46. Ra7 {[%clk 0:00:16.3]} 46... Be6 {[%clk 0:00:13.3]} 47.
Ra6 {[%clk 0:00:15.7]} 47... Bc8 {[%clk 0:00:12.6]} 48. Rb6 {[%clk 0:00:13.7]}
48... Kc7 {[%clk 0:00:12.5]} 49. Ra6 {[%clk 0:00:10.1]} 49... Bxa6 {[%clk
0:00:12.7]} 50. Bxa6 {[%clk 0:00:10.5]} 50... Bd6 {[%clk 0:00:12.1]} 51. b5
{[%clk 0:00:10.2]} 51... Kb6 {[%clk 0:00:07.4]} 52. Kd3 {[%clk 0:00:10]} 52...
cxb5 {[%clk 0:00:07.7]} 53. Bc8 {[%clk 0:00:10.1]} 53... Kc5 {[%clk 0:00:07.4]}
54. Be6 {[%clk 0:00:10.3]} 54... Be5 {[%clk 0:00:07.5]} 55. Kc2 {[%clk
0:00:10.1]} 55... Kd4 {[%clk 0:00:07.2]} 56. Bf5 {[%clk 0:00:10.1]} 56... b4
{[%clk 0:00:06.4]} 57. Kb3 {[%clk 0:00:10.5]} 57... Bd6 {[%clk 0:00:06.8]} 58.
Be6 {[%clk 0:00:10.4]} 58... Kxe4 {[%clk 0:00:06.9]} 59. Bf5+ {[%clk 0:00:10.6]}
59... Kf4 {[%clk 0:00:07.2]} 60. Be6 {[%clk 0:00:10.7]} 60... Kg3 {[%clk
0:00:07.4]} 61. Bf5 {[%clk 0:00:11.1]} 61... Kxh3 {[%clk 0:00:07.9]} 62. Be6
{[%clk 0:00:11.3]} 62... Kg3 {[%clk 0:00:08.4]} 63. Bf5 {[%clk 0:00:11.3]} 63...
Kf4 {[%clk 0:00:08.9]} 64. Be6 {[%clk 0:00:11.4]} 64... Ke5 {[%clk 0:00:09.3]}
65. Bf5 {[%clk 0:00:11.6]} 65... Bc5 {[%clk 0:00:09.6]} 66. Bd7 {[%clk
0:00:11.5]} 66... Kd4 {[%clk 0:00:10.2]} 67. Bf5 {[%clk 0:00:11.9]} 67... Be7
{[%clk 0:00:10.3]} 68. Bd7 {[%clk 0:00:12.2]} 68... Bd6 {[%clk 0:00:10.6]} 69.
Bf5 {[%clk 0:00:12.7]} 69... Kc5 {[%clk 0:00:10.9]} 70. Bd7 {[%clk 0:00:12.7]}
70... Kb6 {[%clk 0:00:11.2]} 71. Bf5 {[%clk 0:00:13.2]} 71... Kc7 {[%clk
0:00:11.6]} 72. Be6 {[%clk 0:00:13.4]} 72... f5 {[%clk 0:00:12.3]} 73. Bxf5
{[%clk 0:00:13.5]} 73... Kd8 {[%clk 0:00:12.4]} 74. Be6 {[%clk 0:00:13.6]} 74...
Ke7 {[%clk 0:00:10.2]} 75. Bf5 {[%clk 0:00:12.7]} 75... Kf6 {[%clk 0:00:10.4]}
76. Bd7 {[%clk 0:00:12.3]} 76... Ke5 {[%clk 0:00:10.8]} 77. Bf5 {[%clk
0:00:12.1]} 77... Kf4 {[%clk 0:00:11.4]} 78. Be6 {[%clk 0:00:11.8]} 78... Ke5
{[%clk 0:00:12.3]} 79. Bf5 {[%clk 0:00:11.8]} 79... Kf4 {[%clk 0:00:11.9]}
1/2-1/2

[Event "*** SCC Grand Prix: Titled Tuesday Blitz"]
[Site "Chess.com"]
[Date "2020.08.25"]
[Round "4"]
[White "profofchess"]
[Black "MikeSailer"]
[Result "1/2-1/2"]
[WhiteElo "2419"]
[BlackElo "2174"]
[TimeControl "180+1"]
[EndTime "10:42:34 PDT"]
[Termination "Game drawn - insufficient material"]

1. e4 {[%clk 0:03:00.9]} 1... d5 {[%clk 0:02:59.4]} 2. exd5 {[%clk 0:03:00.4]}
2... Qxd5 {[%clk 0:02:59.8]} 3. Nc3 {[%clk 0:03:00.5]} 3... Qd6 {[%clk
0:03:00.5]} 4. d4 {[%clk 0:02:58.3]} 4... Nf6 {[%clk 0:03:00.7]} 5. Nf3 {[%clk
0:02:58.6]} 5... c6 {[%clk 0:03:00.2]} 6. Ne5 {[%clk 0:02:58.3]} 6... Nbd7
{[%clk 0:02:59.6]} 7. Nc4 {[%clk 0:02:58.4]} 7... Qc7 {[%clk 0:02:59.7]} 8. Qf3
{[%clk 0:02:59]} 8... Nb6 {[%clk 0:02:59.9]} 9. Bf4 {[%clk 0:02:58.5]} 9... Qd7
{[%clk 0:03:00.5]} 10. Ne5 {[%clk 0:02:53.3]} 10... Qxd4 {[%clk 0:02:46]} 11.
Bd3 {[%clk 0:02:53.1]} 11... Nbd5 {[%clk 0:02:37.5]} 12. Nxd5 {[%clk 0:02:31.4]}
12... Qxd5 {[%clk 0:02:25.8]} 13. Qe2 {[%clk 0:02:23.7]} 13... Qa5+ {[%clk
0:01:53.2]} 14. Bd2 {[%clk 0:02:17.4]} 14... Qc7 {[%clk 0:01:53]} 15. O-O-O
{[%clk 0:02:14.3]} 15... e6 {[%clk 0:01:50.7]} 16. g4 {[%clk 0:01:59.7]} 16...
Bd6 {[%clk 0:01:47.3]} 17. f4 {[%clk 0:01:59.5]} 17... Nd5 {[%clk 0:01:26.7]}
18. Kb1 {[%clk 0:01:45.7]} 18... g5 {[%clk 0:01:13.2]} 19. Rde1 {[%clk
0:01:16.2]} 19... Nxf4 {[%clk 0:01:08.6]} 20. Bxf4 {[%clk 0:01:15.8]} 20... gxf4
{[%clk 0:01:09.3]} 21. Nc4 {[%clk 0:01:12.3]} 21... Bd7 {[%clk 0:01:05.3]} 22.
Rhf1 {[%clk 0:01:05.8]} 22... O-O-O {[%clk 0:01:03.9]} 23. Nxd6+ {[%clk
0:01:05.3]} 23... Qxd6 {[%clk 0:01:04.2]} 24. Qe5 {[%clk 0:00:54.9]} 24... Qxe5
{[%clk 0:00:59.6]} 25. Rxe5 {[%clk 0:00:55.8]} 25... f6 {[%clk 0:01:00.1]} 26.
Ra5 {[%clk 0:00:55.6]} 26... e5 {[%clk 0:00:56.1]} 27. Rxa7 {[%clk 0:00:54.7]}
27... Bxg4 {[%clk 0:00:56.6]} 28. Rg1 {[%clk 0:00:48.7]} 28... h5 {[%clk
0:00:49.1]} 29. Ra4 {[%clk 0:00:29.7]} 29... Kc7 {[%clk 0:00:41.1]} 30. Kc1
{[%clk 0:00:23]} 30... Rhg8 {[%clk 0:00:29.4]} 31. a3 {[%clk 0:00:19.2]} 31...
Bf3 {[%clk 0:00:28]} 32. Rf1 {[%clk 0:00:15.9]} 32... e4 {[%clk 0:00:27.9]} 33.
Bxe4 {[%clk 0:00:14.8]} 33... Bxe4 {[%clk 0:00:25.7]} 34. Rxe4 {[%clk
0:00:15.7]} 34... Rg2 {[%clk 0:00:24.5]} 35. Rexf4 {[%clk 0:00:12.5]} 35... Rdd2
{[%clk 0:00:21.5]} 36. Rc4 {[%clk 0:00:11.5]} 36... Rxh2 {[%clk 0:00:22.1]} 37.
Rxf6 {[%clk 0:00:11.4]} 37... Rdf2 {[%clk 0:00:15]} 38. Rxf2 {[%clk 0:00:10.2]}
38... Rxf2 {[%clk 0:00:15.8]} 39. Rh4 {[%clk 0:00:11]} 39... Rf5 {[%clk
0:00:16]} 40. a4 {[%clk 0:00:10.8]} 40... Kd6 {[%clk 0:00:15.9]} 41. Kd2 {[%clk
0:00:10.7]} 41... Ke6 {[%clk 0:00:16.8]} 42. b4 {[%clk 0:00:08.9]} 42... Kf6
{[%clk 0:00:17]} 43. Rh1 {[%clk 0:00:07.5]} 43... Kg5 {[%clk 0:00:16.8]} 44.
Rg1+ {[%clk 0:00:06.2]} 44... Kf6 {[%clk 0:00:16.9]} 45. Rg8 {[%clk 0:00:05.9]}
45... h4 {[%clk 0:00:16.2]} 46. Rh8 {[%clk 0:00:06]} 46... Rf4 {[%clk
0:00:16.7]} 47. c3 {[%clk 0:00:04.8]} 47... Kg5 {[%clk 0:00:16.6]} 48. Rh7
{[%clk 0:00:04.3]} 48... b6 {[%clk 0:00:11.9]} 49. a5 {[%clk 0:00:04.1]} 49...
bxa5 {[%clk 0:00:11.7]} 50. bxa5 {[%clk 0:00:05]} 50... Ra4 {[%clk 0:00:12.2]}
51. Rg7+ {[%clk 0:00:03.6]} 51... Kh5 {[%clk 0:00:08.9]} 52. Rh7+ {[%clk
0:00:03.7]} 52... Kg4 {[%clk 0:00:09]} 53. Rg7+ {[%clk 0:00:03.9]} 53... Kh3
{[%clk 0:00:09.6]} 54. Rg6 {[%clk 0:00:04.1]} 54... Rxa5 {[%clk 0:00:08.8]} 55.
Rxc6 {[%clk 0:00:03.7]} 55... Rd5+ {[%clk 0:00:07.5]} 56. Ke3 {[%clk 0:00:03.5]}
56... Rg5 {[%clk 0:00:04.7]} 57. Rh6 {[%clk 0:00:03.3]} 57... Kg3 {[%clk
0:00:04.6]} 58. Kd4 {[%clk 0:00:03.4]} 58... h3 {[%clk 0:00:05.3]} 59. c4 {[%clk
0:00:03.5]} 59... Rg4+ {[%clk 0:00:05.5]} 60. Kd5 {[%clk 0:00:03.7]} 60... Rh4
{[%clk 0:00:05.7]} 61. Rg6+ {[%clk 0:00:03.9]} 61... Kf4 {[%clk 0:00:05.8]} 62.
Ra6 {[%clk 0:00:04.3]} 62... h2 {[%clk 0:00:06.1]} 63. Rf6+ {[%clk 0:00:03.9]}
63... Ke3 {[%clk 0:00:04.7]} 64. Rf1 {[%clk 0:00:04.2]} 64... h1=Q+ {[%clk
0:00:05.4]} 65. Rxh1 {[%clk 0:00:04.4]} 65... Rxh1 {[%clk 0:00:06.1]} 66. c5
{[%clk 0:00:05.3]} 66... Rc1 {[%clk 0:00:02.5]} 67. c6 {[%clk 0:00:05.2]} 67...
Kf4 {[%clk 0:00:02.9]} 68. Kd6 {[%clk 0:00:05.4]} 68... Kf5 {[%clk 0:00:02.6]}
69. c7 {[%clk 0:00:05.8]} 69... Kf6 {[%clk 0:00:02.6]} 70. Kd7 {[%clk
0:00:06.1]} 70... Rd1+ {[%clk 0:00:02.3]} 71. Kc6 {[%clk 0:00:06.5]} 71... Rc1+
{[%clk 0:00:02.2]} 72. Kb7 {[%clk 0:00:07]} 72... Ke7 {[%clk 0:00:02.8]} 73.
c8=Q {[%clk 0:00:06.8]} 73... Rxc8 {[%clk 0:00:03.1]} 74. Kxc8 {[%clk
0:00:07.7]} 1/2-1/2

[Event "*** SCC Grand Prix: Titled Tuesday Blitz"]
[Site "Chess.com"]
[Date "2020.08.25"]
[Round "4"]
[White "brute4ever"]
[Black "ElGasanov"]
[Result "0-1"]
[WhiteElo "2495"]
[BlackElo "2756"]
[TimeControl "180+1"]
[EndTime "10:42:38 PDT"]
[Termination "ElGasanov won by resignation"]

1. e4 {[%clk 0:02:59.3]} 1... c5 {[%clk 0:02:59.4]} 2. Nf3 {[%clk 0:02:59.4]}
2... Nc6 {[%clk 0:03:00]} 3. Bb5 {[%clk 0:02:59.7]} 3... Nf6 {[%clk 0:02:58]} 4.
e5 {[%clk 0:02:57.6]} 4... Nd5 {[%clk 0:02:57.5]} 5. Nc3 {[%clk 0:02:58]} 5...
Nc7 {[%clk 0:02:58]} 6. Bxc6 {[%clk 0:02:57.6]} 6... dxc6 {[%clk 0:02:58.9]} 7.
h3 {[%clk 0:02:57.3]} 7... Bf5 {[%clk 0:02:58.1]} 8. O-O {[%clk 0:02:57.4]} 8...
e6 {[%clk 0:02:58.6]} 9. d3 {[%clk 0:02:57.5]} 9... Be7 {[%clk 0:02:58.6]} 10.
b3 {[%clk 0:02:56.9]} 10... O-O {[%clk 0:02:52.8]} 11. Bb2 {[%clk 0:02:56.4]}
11... h6 {[%clk 0:02:49.6]} 12. a4 {[%clk 0:02:45.6]} 12... Nd5 {[%clk
0:02:41.2]} 13. Re1 {[%clk 0:02:44.5]} 13... Nxc3 {[%clk 0:02:36.5]} 14. Bxc3
{[%clk 0:02:42.2]} 14... Qd5 {[%clk 0:02:37.4]} 15. Nd2 {[%clk 0:02:38.1]} 15...
Rfd8 {[%clk 0:02:34.5]} 16. Nc4 {[%clk 0:02:31.1]} 16... Bg6 {[%clk 0:02:27.6]}
17. Ne3 {[%clk 0:02:27.9]} 17... Qd7 {[%clk 0:02:27.9]} 18. Qg4 {[%clk
0:02:27.9]} 18... b5 {[%clk 0:02:22]} 19. h4 {[%clk 0:02:01.7]} 19... h5 {[%clk
0:01:58.9]} 20. Qf4 {[%clk 0:02:00.3]} 20... a6 {[%clk 0:01:51.5]} 21. Nf1
{[%clk 0:01:53]} 21... Qd5 {[%clk 0:01:35.4]} 22. Ne3 {[%clk 0:01:47.9]} 22...
Qd7 {[%clk 0:01:35.5]} 23. Nf1 {[%clk 0:01:48.5]} 23... Rab8 {[%clk 0:01:25.5]}
24. Re3 {[%clk 0:01:44.5]} 24... Qd5 {[%clk 0:01:15.9]} 25. Rg3 {[%clk
0:01:39.5]} 25... Rdc8 {[%clk 0:01:04.2]} 26. Ne3 {[%clk 0:01:29.4]} 26... Qd8
{[%clk 0:01:04.5]} 27. Rh3 {[%clk 0:01:29.9]} 27... Ra8 {[%clk 0:00:59.5]} 28.
g4 {[%clk 0:01:28]} 28... Bxh4 {[%clk 0:00:53.9]} 29. gxh5 {[%clk 0:01:22.6]}
29... Bg5 {[%clk 0:00:54.3]} 30. Qg4 {[%clk 0:01:19.6]} 30... Bh7 {[%clk
0:00:49.5]} 31. Rg3 {[%clk 0:01:15.5]} 31... Bh6 {[%clk 0:00:49.5]} 32. Kh2
{[%clk 0:01:07.4]} 32... Qe7 {[%clk 0:00:48.3]} 33. Rag1 {[%clk 0:01:05.2]}
33... Kh8 {[%clk 0:00:48.1]} 34. Rf3 {[%clk 0:00:37.9]} 34... Rg8 {[%clk
0:00:44.3]} 35. Rfg3 {[%clk 0:00:35.8]} 35... Rad8 {[%clk 0:00:39.3]} 36. Bb2
{[%clk 0:00:35.7]} 36... Rd7 {[%clk 0:00:35.8]} 37. Ng2 {[%clk 0:00:32.9]} 37...
Bf5 {[%clk 0:00:34.5]} 38. Qf3 {[%clk 0:00:33.3]} 38... Rd5 {[%clk 0:00:28.3]}
39. Ne3 {[%clk 0:00:29.4]} 39... Qd7 {[%clk 0:00:17.5]} 40. Nxf5 {[%clk
0:00:14.1]} 40... exf5 {[%clk 0:00:16.7]} 41. e6 {[%clk 0:00:13.5]} 41... Qxe6
{[%clk 0:00:16.4]} 42. axb5 {[%clk 0:00:12.3]} 42... axb5 {[%clk 0:00:16.2]} 43.
Bc1 {[%clk 0:00:12.8]} 43... f4 {[%clk 0:00:14.2]} 44. Rg4 {[%clk 0:00:10.9]}
44... Rxh5+ {[%clk 0:00:11.3]} 45. Kg2 {[%clk 0:00:11.3]} 45... Qf5 {[%clk
0:00:10.8]} 46. Re1 {[%clk 0:00:10.5]} 46... Rg5 {[%clk 0:00:10.1]} 47. Rxg5
{[%clk 0:00:10]} 47... Qxg5+ {[%clk 0:00:11]} 48. Kf1 {[%clk 0:00:10.6]} 48...
Qf6 {[%clk 0:00:09.7]} 49. Re4 {[%clk 0:00:09.7]} 49... Qa1 {[%clk 0:00:09.3]}
50. Qd1 {[%clk 0:00:09.5]} 50... Qf6 {[%clk 0:00:07.7]} 51. Qf3 {[%clk
0:00:09.1]} 51... Qf5 {[%clk 0:00:07.5]} 52. Bd2 {[%clk 0:00:07.7]} 52... Qf6
{[%clk 0:00:06]} 53. c3 {[%clk 0:00:07.2]} 53... Ra8 {[%clk 0:00:05.6]} 54. Ke2
{[%clk 0:00:07.5]} 54... Ra2 {[%clk 0:00:05.7]} 55. Re8+ {[%clk 0:00:07.7]}
55... Kh7 {[%clk 0:00:05.5]} 56. Qe4+ {[%clk 0:00:08.6]} 56... g6 {[%clk
0:00:06.1]} 57. Qf3 {[%clk 0:00:08.8]} 57... Qxc3 {[%clk 0:00:05.8]} 58. Kf1
{[%clk 0:00:06.4]} 58... Qxd2 {[%clk 0:00:06.1]} 59. Kg2 {[%clk 0:00:07.3]}
59... Qc3 {[%clk 0:00:06.2]} 60. Qxc6 {[%clk 0:00:07.3]} 60... Qxd3 {[%clk
0:00:04.5]} 61. Qf3 {[%clk 0:00:07.6]} 61... Qxf3+ {[%clk 0:00:04.4]} 62. Kxf3
{[%clk 0:00:08.5]} 62... Ra3 {[%clk 0:00:04.8]} 63. Kg4 {[%clk 0:00:08.4]} 63...
Rxb3 {[%clk 0:00:05.2]} 64. f3 {[%clk 0:00:09.3]} 64... f5+ {[%clk 0:00:05.1]}
65. Kh4 {[%clk 0:00:09.4]} 65... Kg7 {[%clk 0:00:04.7]} 66. Re7+ {[%clk
0:00:09.4]} 66... Kf6 {[%clk 0:00:04.8]} 67. Rb7 {[%clk 0:00:09.2]} 67... Bg5+
{[%clk 0:00:04.9]} 68. Kh3 {[%clk 0:00:09.8]} 68... Rxf3+ {[%clk 0:00:05.5]} 69.
Kg2 {[%clk 0:00:10.7]} 69... Rb3 {[%clk 0:00:05.8]} 70. Kf2 {[%clk 0:00:11.6]}
70... c4 {[%clk 0:00:05.5]} 71. Rb6+ {[%clk 0:00:12.4]} 71... Ke5 {[%clk
0:00:05.8]} 72. Rxb5+ {[%clk 0:00:13]} 72... Rxb5 {[%clk 0:00:04.9]} 73. Kf3
{[%clk 0:00:13.9]} 73... Bh4 {[%clk 0:00:05.4]} 0-1

[Event "*** SCC Grand Prix: Titled Tuesday Blitz"]
[Site "Chess.com"]
[Date "2020.08.25"]
[Round "4"]
[White "WIDBIFS"]
[Black "dopolian"]
[Result "1/2-1/2"]
[WhiteElo "2671"]
[BlackElo "2479"]
[TimeControl "180+1"]
[EndTime "10:42:40 PDT"]
[Termination "Game drawn - insufficient material"]

1. d4 {[%clk 0:03:00.9]} 1... Nf6 {[%clk 0:02:59.8]} 2. Nf3 {[%clk 0:03:00.9]}
2... g6 {[%clk 0:02:59.1]} 3. g3 {[%clk 0:03:01]} 3... Bg7 {[%clk 0:02:59]} 4.
Bg2 {[%clk 0:03:01.9]} 4... O-O {[%clk 0:02:59.3]} 5. O-O {[%clk 0:03:02.8]}
5... c5 {[%clk 0:02:57.9]} 6. c4 {[%clk 0:03:03.1]} 6... cxd4 {[%clk 0:02:55.1]}
7. Nxd4 {[%clk 0:03:04]} 7... Nc6 {[%clk 0:02:55.5]} 8. Nc3 {[%clk 0:03:04.4]}
8... d6 {[%clk 0:02:55.6]} 9. Nb3 {[%clk 0:03:02.4]} 9... Be6 {[%clk 0:02:45.3]}
10. Nd5 {[%clk 0:03:00.4]} 10... Bxd5 {[%clk 0:02:42.4]} 11. cxd5 {[%clk
0:02:59.8]} 11... Ne5 {[%clk 0:02:38.7]} 12. Bd2 {[%clk 0:02:57.6]} 12... Rc8
{[%clk 0:02:30.7]} 13. Bc3 {[%clk 0:02:57.9]} 13... Qb6 {[%clk 0:02:23.1]} 14.
Qd4 {[%clk 0:02:44.7]} 14... Qxd4 {[%clk 0:02:22.9]} 15. Nxd4 {[%clk 0:02:45.6]}
15... a6 {[%clk 0:02:07.6]} 16. a4 {[%clk 0:02:39.7]} 16... Rc5 {[%clk
0:01:56.9]} 17. Nb3 {[%clk 0:02:26.7]} 17... Rc7 {[%clk 0:01:55.2]} 18. Bxe5
{[%clk 0:02:12.9]} 18... dxe5 {[%clk 0:01:54]} 19. a5 {[%clk 0:02:03.4]} 19...
e4 {[%clk 0:01:49]} 20. Ra4 {[%clk 0:01:54.3]} 20... Rd8 {[%clk 0:01:47.3]} 21.
Rd1 {[%clk 0:01:51.4]} 21... Rxd5 {[%clk 0:01:35.4]} 22. Rxd5 {[%clk 0:01:49.6]}
22... Nxd5 {[%clk 0:01:36.3]} 23. Bxe4 {[%clk 0:01:50.2]} 23... e6 {[%clk
0:01:28.5]} 24. Nd4 {[%clk 0:01:27.6]} 24... Kf8 {[%clk 0:01:19.5]} 25. e3
{[%clk 0:01:25.5]} 25... Nf6 {[%clk 0:01:06.6]} 26. Bf3 {[%clk 0:01:24.3]} 26...
Ne8 {[%clk 0:01:03]} 27. Rb4 {[%clk 0:01:22.6]} 27... Nd6 {[%clk 0:01:03.2]} 28.
Rb6 {[%clk 0:01:21.3]} 28... Ke7 {[%clk 0:01:03.3]} 29. Be2 {[%clk 0:00:28.6]}
29... e5 {[%clk 0:00:38.9]} 30. Nf3 {[%clk 0:00:28]} 30... e4 {[%clk 0:00:38.5]}
31. Nd4 {[%clk 0:00:27.9]} 31... Bxd4 {[%clk 0:00:38.5]} 32. exd4 {[%clk
0:00:28.8]} 32... Ke6 {[%clk 0:00:29.5]} 33. Kg2 {[%clk 0:00:19.1]} 33... Kd5
{[%clk 0:00:29.4]} 34. Rb4 {[%clk 0:00:19.8]} 34... Rc2 {[%clk 0:00:24.4]} 35.
Kf1 {[%clk 0:00:17.4]} 35... Rc1+ {[%clk 0:00:23.2]} 36. Kg2 {[%clk 0:00:17.6]}
36... f5 {[%clk 0:00:19.7]} 37. h4 {[%clk 0:00:17.2]} 37... Rc7 {[%clk
0:00:17.4]} 38. f3 {[%clk 0:00:11.6]} 38... h6 {[%clk 0:00:16]} 39. fxe4+ {[%clk
0:00:11.1]} 39... Nxe4 {[%clk 0:00:16.9]} 40. g4 {[%clk 0:00:06.7]} 40... f4
{[%clk 0:00:16.1]} 41. Bf3 {[%clk 0:00:06.2]} 41... g5 {[%clk 0:00:12.3]} 42.
hxg5 {[%clk 0:00:03.4]} 42... hxg5 {[%clk 0:00:13.2]} 43. Rb6 {[%clk 0:00:01.7]}
43... Re7 {[%clk 0:00:06.2]} 44. Rg6 {[%clk 0:00:01.2]} 44... Kxd4 {[%clk
0:00:06.2]} 45. Rg8 {[%clk 0:00:01.2]} 45... Ke3 {[%clk 0:00:05.2]} 46. Rd8
{[%clk 0:00:02.1]} 46... Rc7 {[%clk 0:00:02.6]} 47. Bxe4 {[%clk 0:00:02.7]}
47... Kxe4 {[%clk 0:00:02.5]} 48. Re8+ {[%clk 0:00:03.2]} 48... Kd4 {[%clk
0:00:02.9]} 49. Rd8+ {[%clk 0:00:03.5]} 49... Ke3 {[%clk 0:00:03.2]} 50. Re8+
{[%clk 0:00:04.4]} 50... Kd2 {[%clk 0:00:03.5]} 51. Re5 {[%clk 0:00:04.9]} 51...
Kc2 {[%clk 0:00:03.2]} 52. b4 {[%clk 0:00:04.9]} 52... Rg7 {[%clk 0:00:02.1]}
53. Kf3 {[%clk 0:00:04.8]} 53... Kc3 {[%clk 0:00:02.4]} 54. b5 {[%clk
0:00:05.7]} 54... axb5 {[%clk 0:00:03.3]} 55. Rxb5 {[%clk 0:00:05.4]} 55... Kc4
{[%clk 0:00:04.1]} 56. Rf5 {[%clk 0:00:05.6]} 56... Kb4 {[%clk 0:00:04.6]} 57.
Re5 {[%clk 0:00:05.6]} 57... Kc4 {[%clk 0:00:04.8]} 58. Rf5 {[%clk 0:00:06.1]}
58... Kd4 {[%clk 0:00:05.2]} 59. Rb5 {[%clk 0:00:06.1]} 59... Kc4 {[%clk
0:00:02.7]} 60. Rb6 {[%clk 0:00:06.5]} 60... Kc5 {[%clk 0:00:02.6]} 61. Rf6
{[%clk 0:00:06.8]} 61... Re7 {[%clk 0:00:02.4]} 62. Rf5+ {[%clk 0:00:06.9]}
62... Kb4 {[%clk 0:00:02.2]} 63. Rxg5 {[%clk 0:00:07.8]} 63... Re3+ {[%clk
0:00:02.8]} 64. Kxf4 {[%clk 0:00:08]} 64... Re1 {[%clk 0:00:03.5]} 65. Rf5
{[%clk 0:00:08]} 65... Rf1+ {[%clk 0:00:03.7]} 66. Kg5 {[%clk 0:00:08.4]} 66...
Rg1 {[%clk 0:00:04.3]} 67. Kf4 {[%clk 0:00:08.1]} 67... Rh1 {[%clk 0:00:04.4]}
68. g5 {[%clk 0:00:08.3]} 68... Rg1 {[%clk 0:00:04.3]} 69. Ke5 {[%clk
0:00:08.4]} 69... Kxa5 {[%clk 0:00:03.7]} 70. Kf6+ {[%clk 0:00:09.1]} 70... Ka4
{[%clk 0:00:04.2]} 71. g6 {[%clk 0:00:10]} 71... b5 {[%clk 0:00:04.5]} 72. Rg5
{[%clk 0:00:10.4]} 72... Rf1+ {[%clk 0:00:03.8]} 73. Ke7 {[%clk 0:00:10.9]}
73... Re1+ {[%clk 0:00:03.8]} 74. Kd7 {[%clk 0:00:11.5]} 74... Rd1+ {[%clk
0:00:04.2]} 75. Ke6 {[%clk 0:00:11.7]} 75... Rd8 {[%clk 0:00:04.1]} 76. g7
{[%clk 0:00:11.7]} 76... Rg8 {[%clk 0:00:04.4]} 77. Kf7 {[%clk 0:00:11.6]} 77...
Rxg7+ {[%clk 0:00:04.7]} 78. Kxg7 {[%clk 0:00:12.5]} 78... b4 {[%clk 0:00:05.3]}
79. Rg2 {[%clk 0:00:11.1]} 79... b3 {[%clk 0:00:05]} 80. Kf6 {[%clk 0:00:12]}
80... Ka3 {[%clk 0:00:05.1]} 81. Ke5 {[%clk 0:00:12.1]} 81... b2 {[%clk
0:00:05.5]} 82. Rg3+ {[%clk 0:00:12]} 82... Ka2 {[%clk 0:00:05.8]} 83. Rg2
{[%clk 0:00:11.3]} 83... Ka1 {[%clk 0:00:06.2]} 84. Rxb2 {[%clk 0:00:11.8]}
84... Kxb2 {[%clk 0:00:07.1]} 1/2-1/2